bitfinex-derivatives/quotes_BTCF0:USTF0_20250127
["timestamp","ask_amount","ask_price","bid_price","bid_amount"]
[1737991024712,0.86878325,101380.0,101370.0,1.92954665]
[1737991026414,0.558006,101410.0,101370.0,2.14237965]
[1737991026621,0.36227982,101420.0,101410.0,0.197203]
[1737991026912,0.36227982,101420.0,101410.0,0.42157365]
[1737991027307,0.00147982,101420.0,101410.0,0.42157365]
[1737991027513,0.00014776,101430.0,101420.0,0.246478]
[1737991027716,0.26347957,101430.0,101420.0,0.246478]
[1737991027918,0.26347957,101430.0,101420.0,0.197183]
[1737991028217,0.26347957,101430.0,101420.0,1.697183]
[1737991028218,0.82144357,101430.0,101420.0,1.697183]
[1737991028419,0.82144357,101430.0,101420.0,0.197183]
[1737991028618,0.19719,101420.0,101410.0,0.197198]
[1737991028914,0.55799,101420.0,101410.0,0.197198]
[1737991029422,0.3608,101420.0,101410.0,0.197198]
[1737991030305,0.3608,101420.0,101410.0,0.42156865]
[1737991030512,0.82144557,101430.0,101420.0,0.197183]
[1737991031009,0.26347957,101430.0,101420.0,0.557983]
[1737991031207,0.41785496,101440.0,101430.0,0.197164]
[1737991031520,0.56773657,101470.0,101440.0,0.049286]
[1737991031715,0.00984357,101470.0,101460.0,0.197105]
[1737991032018,0.3608,101480.0,101470.0,0.197086]
[1737991032614,0.557866,101480.0,101470.0,0.197086]
[1737991033009,0.85140475,101480.0,101470.0,0.197086]
[1737991033328,0.85140475,101480.0,101460.0,1.69724676]
[1737991033511,0.557886,101470.0,101460.0,1.69724676]
[1737991033815,0.88098122,101480.0,101460.0,1.50014776]
[1737991034009,0.88098122,101480.0,101470.0,0.197092]
[1737991034611,0.197092,101470.0,101460.0,0.00014776]
[1737991034811,0.557892,101470.0,101460.0,0.19725876]
[1737991035011,0.6709123,101470.0,101460.0,0.19725876]
[1737991035813,0.6709123,101470.0,101460.0,0.00014776]
[1737991036714,0.197131,101450.0,101440.0,0.197146]
[1737991036914,0.3608,101450.0,101440.0,0.197146]
[1737991037120,0.3608,101460.0,101450.0,0.197131]
[1737991037315,0.58744247,101480.0,101460.0,0.197096]
[1737991037522,0.3608,101470.0,101460.0,0.197096]
[1737991037725,0.66155278,101470.0,101460.0,0.197096]
[1737991038019,0.197111,101460.0,101450.0,0.00014776]
[1737991038211,0.557911,101460.0,101450.0,0.00014776]
[1737991038412,0.66308152,101460.0,101450.0,0.00014776]
[1737991038811,0.66308152,101460.0,101450.0,0.19727876]
[1737991039213,0.46597052,101460.0,101430.0,0.205043]
[1737991039425,0.91875,101440.0,101430.0,0.00788]
[1737991039615,0.19717,101430.0,101420.0,0.19866065]
[1737991039814,0.55797,101430.0,101420.0,0.19866065]
[1737991040210,0.197198,101420.0,101410.0,0.197206]
[1737991040411,0.197226,101410.0,101400.0,0.197225]
[1737991040621,0.558026,101410.0,101390.0,0.197238]
[1737991040828,0.3608,101400.0,101390.0,0.205128]
[1737991041528,0.558028,101400.0,101390.0,0.00789]
[1737991041727,0.558028,101400.0,101390.0,0.205137]
[1737991042225,0.3608,101400.0,101390.0,0.205137]
[1737991042429,0.558028,101400.0,101390.0,0.205137]
[1737991042620,0.3608,101400.0,101390.0,0.205137]
[1737991043418,0.558028,101400.0,101390.0,0.205137]
[1737991044927,0.558028,101400.0,101390.0,1e-08]
[1737991044928,0.66840496,101400.0,101390.0,1e-08]
[1737991045117,0.96840496,101400.0,101390.0,1e-08]
[1737991045321,0.197267,101380.0,101370.0,0.00789]
[1737991045523,0.918867,101380.0,101370.0,0.00789]
[1737991045827,1.02924396,101380.0,101370.0,0.00789]
[1737991046021,1.02924396,101380.0,101370.0,0.205176]
[1737991046228,1.02924396,101380.0,101370.0,0.00789]
[1737991046629,1.02924396,101380.0,101370.0,0.205176]
[1737991046930,0.66844396,101380.0,101370.0,0.205176]
[1737991047117,0.66844396,101380.0,101370.0,0.197286]
[1737991047436,0.47117696,101380.0,101370.0,0.197286]
[1737991047820,0.11037696,101380.0,101370.0,0.197286]
[1737991048021,0.36094776,101390.0,101380.0,0.197267]
[1737991048631,0.36094776,101390.0,101380.0,1.697267]
[1737991049031,0.00014776,101390.0,101380.0,2.058067]
[1737991049338,0.558009,101410.0,101400.0,0.197228]
[1737991049725,0.66647016,101410.0,101400.0,0.197228]
[1737991050029,0.46926116,101410.0,101380.0,1.5]
[1737991050231,0.7216,101390.0,101350.0,0.51425065]
[1737991050440,0.558106,101360.0,101350.0,0.286125]
[1737991051133,0.197325,101350.0,101340.0,0.1989688]
[1737991051333,0.558125,101350.0,101340.0,0.1989688]
[1737991051530,0.558125,101350.0,101340.0,0.2068588]
[1737991051837,0.558125,101350.0,101340.0,0.2147488]
[1737991052429,0.3608,101350.0,101340.0,0.2147488]
[1737991052633,0.197322,101360.0,101350.0,0.197325]
[1737991052834,0.00014776,101370.0,101360.0,0.197306]
[1737991053233,0.36228007,101400.0,101360.0,0.3608]
[1737991053427,0.55951907,101400.0,101390.0,0.197247]
[1737991053637,0.67008586,101400.0,101390.0,0.197247]
[1737991053931,0.197267,101380.0,101370.0,0.0961]
[1737991054138,0.197297,101370.0,101360.0,0.197301]
[1737991054339,0.197306,101360.0,101350.0,0.18719161]
[1737991054632,0.197325,101350.0,101340.0,0.0016278]
[1737991054837,0.558125,101350.0,101340.0,0.1989728]
[1737991055027,0.558125,101350.0,101340.0,0.19749276]
[1737991056634,0.3608,101350.0,101340.0,0.19749276]
[1737991057239,0.558125,101350.0,101340.0,0.19749276]
[1737991057734,0.55825676,101360.0,101340.0,0.00014776]
[1737991057933,0.55825676,101360.0,101350.0,0.197325]
[1737991058130,0.36094776,101360.0,101350.0,0.197325]
[1737991058330,0.00014776,101360.0,101350.0,0.197325]
[1737991059236,0.00014776,101360.0,101350.0,0.294125]
[1737991059538,0.00014776,101360.0,101350.0,0.51849565]
[1737991059731,0.00014776,101360.0,101350.0,0.61109565]
[1737991059932,0.36094776,101360.0,101350.0,0.61109565]
[1737991060137,0.55825376,101360.0,101350.0,0.386725]
[1737991060432,0.36094776,101360.0,101350.0,0.386725]
[1737991060835,0.00014776,101360.0,101350.0,0.386725]
[1737991061040,0.00014776,101360.0,101350.0,2.47189565]
[1737991061237,0.91905376,101360.0,101350.0,1.911385]
[1737991061533,0.91905376,101360.0,101350.0,0.02466]
[1737991062240,0.91905376,101360.0,101350.0,0.221985]
[1737991062537,0.91905376,101360.0,101350.0,0.197325]
[1737991062833,0.36094776,101360.0,101350.0,0.197325]
[1737991063042,0.00014776,101360.0,101350.0,0.51269565]
[1737991063347,0.36094776,101360.0,101350.0,0.288325]
[1737991064433,0.55825376,101360.0,101350.0,0.288325]
[1737991064633,0.36094776,101360.0,101350.0,0.288325]
[1737991064833,0.00014776,101360.0,101350.0,0.288325]
[1737991065034,0.36094776,101360.0,101350.0,0.288325]
[1737991065233,0.00014776,101360.0,101350.0,0.288325]
[1737991065436,0.36094776,101360.0,101350.0,0.288325]
[1737991065631,0.00014776,101360.0,101350.0,0.288325]
[1737991065832,0.55825376,101360.0,101350.0,0.288325]
[1737991066033,0.55825376,101360.0,101350.0,0.197325]
[1737991066930,0.66847709,101360.0,101350.0,0.197325]
[1737991067538,0.197325,101350.0,101340.0,0.22214976]
[1737991067841,0.558125,101350.0,101340.0,0.22214976]
[1737991068224,0.558125,101350.0,101340.0,0.19748976]
[1737991068432,0.558125,101350.0,101340.0,0.00014776]
[1737991068635,1.10434177,101350.0,101310.0,0.00148054]
[1737991068929,0.3608,101320.0,101310.0,0.19888354]
[1737991069129,0.3608,101320.0,101310.0,1.69888354]
[1737991069329,0.918984,101320.0,101310.0,1.70677354]
[1737991069737,0.7216,101320.0,101310.0,0.20677354]
[1737991069937,0.55831476,101330.0,101310.0,0.20677354]
[1737991070138,0.3608,101320.0,101310.0,0.20677354]
[1737991070341,0.3608,101320.0,101310.0,0.19888354]
[1737991070532,0.36094776,101330.0,101320.0,0.197384]
[1737991070749,0.00014776,101330.0,101320.0,0.197384]
[1737991071238,0.36094776,101330.0,101320.0,0.197384]
[1737991071433,0.68896848,101330.0,101310.0,0.19886954]
[1737991071645,0.35291,101320.0,101310.0,0.19886954]
[1737991072034,0.45656007,101320.0,101310.0,0.19886954]
[1737991072737,0.45634446,101320.0,101310.0,0.19886954]
[1737991072939,0.65372846,101320.0,101310.0,0.00148054]
[1737991073137,0.197403,101310.0,101300.0,0.10014776]
[1737991073339,0.558203,101310.0,101300.0,0.10014776]
[1737991073535,0.6632528,101310.0,101300.0,0.13903493]
[1737991074345,0.88762345,101310.0,101300.0,0.13903493]
[1737991076146,0.6632528,101310.0,101300.0,0.13903493]
[1737991078048,0.75523974,101310.0,101300.0,0.13903493]
[1737991078748,0.97961039,101310.0,101300.0,0.13903493]
[1737991078948,0.75523974,101310.0,101300.0,0.13903493]
[1737991079452,0.97961039,101310.0,101300.0,0.13903493]
[1737991079649,0.78220739,101310.0,101280.0,0.5371]
[1737991079849,0.197462,101280.0,101270.0,0.19894998]
[1737991080054,0.558262,101280.0,101270.0,0.19894998]
[1737991080246,0.66626029,101280.0,101270.0,0.00148098]
[1737991080452,0.197491,101270.0,101250.0,1.877215]
[1737991080651,0.558291,101270.0,101250.0,1.6797]
[1737991080952,0.66643705,101270.0,101260.0,0.197501]
[1737991081255,0.66643405,101270.0,101260.0,0.205401]
[1737991082256,0.6933167,101270.0,101240.0,0.49474]
[1737991082441,0.94597065,101250.0,101230.0,0.00148168]
[1737991082749,0.55834,101240.0,101230.0,1.69903468]
[1737991083251,0.47530253,101240.0,101210.0,0.69249873]
[1737991083453,0.558373,101230.0,101210.0,0.43870123]
[1737991083754,0.558368,101230.0,101220.0,0.197579]
[1737991083953,0.67287053,101230.0,101220.0,0.197579]
[1737991085957,0.68259729,101230.0,101220.0,0.197579]
[1737991086156,0.56809476,101230.0,101220.0,0.197579]
[1737991086458,0.37052676,101230.0,101220.0,0.197579]
[1737991086954,0.56808576,101230.0,101220.0,0.197579]
[1737991087357,0.68198423,101230.0,101210.0,1.93869323]
[1737991087547,0.3608,101220.0,101210.0,1.93869323]
[1737991087743,0.3608,101220.0,101210.0,1.705487]
[1737991087956,0.50685791,101240.0,101210.0,2.13456965]
[1737991088255,0.00014776,101230.0,101220.0,0.649779]
[1737991088454,0.14605791,101240.0,101220.0,0.7522]
[1737991088664,0.14605791,101240.0,101230.0,0.78272965]
[1737991088847,0.14605791,101240.0,101230.0,0.87762965]
[1737991089056,0.14605791,101240.0,101230.0,0.51682965]
[1737991089357,0.14605791,101240.0,101230.0,0.292459]
[1737991089661,0.70439791,101240.0,101230.0,0.0949]
[1737991089855,0.61061782,101240.0,101220.0,0.58656776]
[1737991090158,0.558359,101230.0,101220.0,0.58656776]
[1737991090457,0.558359,101230.0,101220.0,0.00804776]
[1737991090658,0.66500056,101230.0,101220.0,0.00804776]
[1737991091753,0.66500056,101230.0,101220.0,0.00014776]
[1737991092564,0.30420056,101230.0,101220.0,0.19772676]
[1737991092757,0.197559,101230.0,101220.0,0.22241676]
[1737991093368,0.558343,101240.0,101230.0,0.197559]
[1737991093965,0.56790955,101240.0,101230.0,1.697559]
[1737991095071,0.37036655,101240.0,101230.0,1.697559]
[1737991095273,0.00956655,101240.0,101230.0,1.697559]
[1737991095472,0.19767576,101250.0,101240.0,0.197539]
[1737991095673,0.55847576,101250.0,101240.0,0.386939]
[1737991096674,0.00014776,101250.0,101240.0,0.386939]
[1737991097281,0.00014776,101250.0,101240.0,0.747739]
[1737991097767,0.197539,101240.0,101230.0,0.00056]
[1737991097967,0.197559,101230.0,101220.0,0.28801776]
[1737991098173,0.558359,101230.0,101220.0,0.28801776]
[1737991098369,0.46382678,101240.0,101220.0,0.09044776]
[1737991098370,0.3608,101240.0,101220.0,0.09044776]
[1737991098677,0.558354,101240.0,101230.0,0.197559]
[1737991099578,0.55847576,101250.0,101220.0,0.50064176]
[1737991099781,0.55847576,101250.0,101240.0,0.197539]
[1737991099782,0.36094776,101250.0,101240.0,0.197539]
[1737991100177,0.00014776,101250.0,101240.0,0.558339]
[1737991100475,0.00014776,101250.0,101240.0,0.378339]
[1737991100675,0.00971139,101250.0,101240.0,0.378339]
[1737991100975,0.20723139,101250.0,101240.0,0.378339]
[1737991101177,0.59488204,101250.0,101220.0,0.45124776]
[1737991101382,0.558349,101240.0,101230.0,0.197551]
[1737991101787,0.66523035,101240.0,101230.0,0.197551]
[1737991102884,0.197559,101230.0,101220.0,0.28801376]
[1737991103085,0.3608,101230.0,101220.0,0.28801376]
[1737991103384,0.3608,101240.0,101230.0,0.197559]
[1737991103884,0.03934101,101250.0,101240.0,0.197539]
[1737991104181,0.40014101,101250.0,101240.0,0.383539]
[1737991104777,0.59766101,101250.0,101240.0,0.383539]
[1737991104976,0.40014101,101250.0,101240.0,0.383539]
[1737991105278,0.03934101,101250.0,101240.0,0.383539]
[1737991105481,0.59766101,101250.0,101240.0,0.383539]
[1737991106285,0.23686101,101250.0,101240.0,0.383539]
[1737991106491,0.03934101,101250.0,101240.0,0.383539]
[1737991106689,0.02977738,101250.0,101240.0,0.383539]
[1737991106988,0.64923525,101280.0,101270.0,0.197481]
[1737991107375,0.17672027,101260.0,101250.0,0.499776]
[1737991107576,0.73502027,101260.0,101250.0,1.78712]
[1737991107981,0.17672027,101260.0,101250.0,2.14792]
[1737991108286,0.06966327,101260.0,101250.0,2.37229065]
[1737991108487,0.20437403,101300.0,101250.0,2.22414965]
[1737991108685,0.20437403,101300.0,101290.0,0.197442]
[1737991108983,0.31369264,101300.0,101290.0,0.197442]
[1737991109376,0.87191464,101300.0,101290.0,0.197442]
[1737991109576,0.31369264,101300.0,101290.0,0.32510009]
[1737991109774,0.20437403,101300.0,101290.0,0.32510009]
[1737991109981,0.20437403,101300.0,101290.0,2.18590009]
[1737991110288,0.19089563,101300.0,101290.0,2.27800009]
[1737991110590,0.19089563,101300.0,101290.0,2.37525494]
[1737991111180,0.23371808,101310.0,101290.0,2.17781294]
[1737991111491,0.23371808,101310.0,101300.0,0.558222]
[1737991111686,0.23371808,101310.0,101300.0,0.650222]
[1737991112384,0.23371808,101310.0,101300.0,0.289422]
[1737991112689,0.23371808,101310.0,101300.0,0.650222]
[1737991113387,0.43112108,101310.0,101300.0,0.289422]
[1737991113590,0.197422,101300.0,101290.0,0.222118]
[1737991113792,0.197442,101290.0,101280.0,0.19759776]
[1737991114087,0.66404669,101290.0,101280.0,0.00014776]
[1737991114885,0.558242,101290.0,101280.0,0.19760876]
[1737991115187,0.3608,101290.0,101280.0,0.19760876]
[1737991115382,0.558242,101290.0,101280.0,0.00014776]
[1737991115580,0.67772692,101290.0,101280.0,0.00014776]
[1737991115781,0.67772692,101290.0,101280.0,0.19760876]
[1737991115981,0.67772692,101290.0,101280.0,0.00014776]
[1737991116182,0.197519,101260.0,101250.0,0.197516]
[1737991116388,0.19752,101250.0,101240.0,1.69901468]
[1737991116583,0.55832,101250.0,101240.0,1.69901468]
[1737991116785,0.558307,101260.0,101250.0,0.19752]
[1737991117179,0.10637614,101260.0,101250.0,0.19752]
[1737991117383,0.55843876,101270.0,101260.0,0.1975]
[1737991117687,0.197513,101260.0,101250.0,0.197515]
[1737991117989,0.19752,101250.0,101240.0,1.69916044]
[1737991118190,0.55832,101250.0,101240.0,1.69916044]
[1737991118790,0.66731946,101250.0,101240.0,0.00952944]
[1737991119280,0.75801946,101250.0,101240.0,0.00952944]
[1737991119687,0.75801946,101250.0,101240.0,0.00162944]
[1737991119886,0.56049946,101250.0,101210.0,0.80509294]
[1737991120084,0.558379,101220.0,101210.0,1.00268294]
[1737991120292,0.558379,101220.0,101210.0,2.28567]
[1737991120889,0.558379,101220.0,101210.0,0.78567]
[1737991121696,0.66985143,101220.0,101210.0,0.49498]
[1737991122191,0.66985143,101220.0,101210.0,0.48708]
[1737991122985,0.66985143,101220.0,101200.0,1.79828176]
[1737991123190,0.197618,101200.0,101190.0,0.0158]
[1737991123384,0.558418,101200.0,101190.0,0.0158]
[1737991123585,0.66329319,101200.0,101190.0,0.0079]
[1737991124189,0.197637,101190.0,101180.0,0.197651]
[1737991124380,0.558437,101190.0,101180.0,0.197651]
[1737991124583,0.66657089,101190.0,101180.0,0.197651]
[1737991125291,0.46893389,101190.0,101180.0,0.197651]
[1737991125694,0.39044426,101200.0,101180.0,0.58571294]
[1737991125888,0.02964426,101200.0,101190.0,0.197637]
[1737991126094,0.13297935,101200.0,101190.0,0.197637]
[1737991126487,0.02964426,101200.0,101190.0,0.197637]
[1737991126793,0.39044426,101200.0,101190.0,0.197637]
[1737991127997,0.58806226,101200.0,101190.0,0.197637]
[1737991128295,0.58806226,101200.0,101180.0,0.197648]
[1737991128296,0.197638,101190.0,101180.0,0.197648]
[1737991128492,0.13245291,101200.0,101180.0,0.3608]
[1737991128697,0.02964426,101200.0,101190.0,0.197637]
[1737991129088,0.02964426,101200.0,101190.0,1.697637]
[1737991130899,0.02964426,101200.0,101190.0,2.28334994]
[1737991131098,0.02964426,101200.0,101190.0,2.46444994]
[1737991131798,0.00014776,101210.0,101200.0,0.197618]
[1737991132000,0.00014776,101210.0,101200.0,0.78333094]
[1737991135394,0.558361,101230.0,101200.0,0.63511594]
[1737991135596,0.558361,101230.0,101220.0,0.197579]
[1737991135790,0.67278434,101230.0,101220.0,0.197579]
[1737991136002,0.47522334,101230.0,101220.0,0.42249194]
[1737991136305,0.31198234,101230.0,101220.0,0.197579]
[1737991136502,0.67278234,101230.0,101220.0,0.197579]
[1737991138491,0.67278234,101230.0,101210.0,1.54954676]
[1737991138492,0.47522334,101230.0,101210.0,0.00014776]
[1737991138695,0.558379,101220.0,101210.0,0.00014776]
[1737991139193,0.66903907,101220.0,101210.0,0.19774576]
[1737991139601,0.66903907,101220.0,101210.0,0.32567601]
[1737991139802,0.47146007,101220.0,101210.0,0.32567601]
[1737991140100,0.11066007,101220.0,101210.0,0.32567601]
[1737991140295,0.11066007,101220.0,101210.0,0.77767601]
[1737991141394,0.11066007,101220.0,101210.0,0.68647601]
[1737991142109,0.11066007,101220.0,101210.0,0.86357601]
[1737991142593,0.11066007,101220.0,101210.0,0.96093819]
[1737991143006,0.11066007,101220.0,101210.0,0.37484576]
[1737991143212,0.66903807,101220.0,101210.0,0.19774576]
[1737991143498,0.6967525,101220.0,101190.0,0.21325174]
[1737991143702,0.197637,101190.0,101180.0,0.19912722]
[1737991143894,0.3608,101190.0,101180.0,0.19912722]
[1737991144094,0.11134507,101190.0,101180.0,1.69912722]
[1737991144294,0.11134507,101190.0,101180.0,1.92441965]
[1737991144502,0.558426,101200.0,101190.0,0.197637]
[1737991144999,0.19777376,101200.0,101190.0,0.197637]
[1737991145202,0.67126052,101200.0,101190.0,0.197637]
[1737991145706,0.67895929,101200.0,101190.0,0.197637]
[1737991146293,0.20546353,101200.0,101190.0,0.197637]
[1737991146498,0.67340664,101200.0,101190.0,0.197637]
[1737991146693,0.31260664,101200.0,101190.0,0.197637]
[1737991147503,0.19765,101190.0,101170.0,0.197658]
[1737991147705,0.55845,101190.0,101180.0,0.197656]
[1737991148001,0.66770182,101190.0,101180.0,0.197656]
[1737991148403,0.47005182,101190.0,101160.0,0.86699243]
[1737991148700,0.55846,101180.0,101170.0,0.197664]
[1737991148902,0.3608,101180.0,101170.0,0.197664]
[1737991149205,0.55857376,101200.0,101190.0,0.197637]
[1737991149507,0.6676569,101200.0,101190.0,0.197637]
[1737991150004,0.3068569,101200.0,101190.0,0.197637]
[1737991150206,0.27039146,101200.0,101190.0,0.197637]
[1737991150502,0.43356546,101200.0,101190.0,0.197637]
[1737991150706,0.63118246,101200.0,101190.0,0.197637]
[1737991150899,0.27038246,101200.0,101190.0,0.197637]
[1737991151101,0.63118246,101200.0,101190.0,0.197637]
[1737991151394,0.63118246,101200.0,101190.0,1.697637]
[1737991151607,0.18030631,101200.0,101190.0,2.058437]
[1737991151906,0.07276546,101200.0,101190.0,1.697637]
[1737991152107,0.07276546,101200.0,101190.0,2.058437]
[1737991152407,0.00014776,101200.0,101190.0,2.058437]
[1737991152608,0.00014776,101200.0,101190.0,1.697637]
[1737991153313,0.00014776,101200.0,101190.0,1.69779135]
[1737991153601,0.66628878,101200.0,101190.0,0.00015435]
[1737991154199,0.76458878,101200.0,101190.0,0.00015435]
[1737991154400,0.46867178,101200.0,101190.0,0.19779135]
[1737991154700,0.36094776,101200.0,101190.0,0.19779135]
[1737991155008,0.55856476,101200.0,101190.0,1.69779135]
[1737991156106,0.63118246,101200.0,101190.0,1.69779135]
[1737991156307,0.74561341,101200.0,101190.0,0.19779135]
[1737991157505,0.41248884,101200.0,101170.0,0.00784762]
[1737991157706,0.197676,101170.0,101160.0,0.213487]
[1737991157902,0.558476,101170.0,101140.0,0.63700535]
[1737991158213,0.558515,101150.0,101140.0,0.00932196]
[1737991158406,0.197754,101130.0,101120.0,0.0951]
[1737991158601,0.558554,101130.0,101120.0,0.0951]
[1737991159004,0.189864,101120.0,101110.0,0.89675075]
[1737991159309,0.542754,101120.0,101110.0,0.89675075]
[1737991159497,0.181954,101120.0,101110.0,1.10248711]
[1737991159703,0.181954,101120.0,101110.0,0.86859525]
[1737991159898,0.65221037,101120.0,101110.0,0.18336225]
[1737991160200,0.65221037,101120.0,101090.0,0.25380261]
[1737991160201,0.3608,101110.0,101090.0,0.25380261]
[1737991160404,0.189942,101080.0,101070.0,0.40931075]
[1737991160607,0.911542,101080.0,101070.0,0.40931075]
[1737991160804,0.11038981,101080.0,101070.0,0.40931075]
[1737991161107,0.3608,101110.0,101080.0,0.049463]
[1737991161311,0.3608,101120.0,101100.0,0.197813]
[1737991161505,0.3608,101120.0,101110.0,0.197793]
[1737991161702,0.47105743,101120.0,101110.0,0.197793]
[1737991161903,0.47105743,101120.0,101110.0,0.205703]
[1737991162104,0.3608,101120.0,101110.0,0.205703]
[1737991162499,0.36861153,101130.0,101120.0,0.197774]
[1737991162708,0.30303407,101120.0,101100.0,0.00014776]
[1737991162902,1.14468543,101110.0,101100.0,0.00014776]
[1737991163307,0.42314443,101080.0,101070.0,1.90931075]
[1737991163611,0.22529243,101080.0,101070.0,2.10718175]
[1737991163909,0.66529849,101080.0,101070.0,1.91722075]
[1737991164120,0.46744649,101080.0,101070.0,1.705781]
[1737991164315,0.47543984,101080.0,101070.0,0.205781]
[1737991164516,0.70073227,101080.0,101070.0,0.205781]
[1737991164812,0.47543984,101080.0,101070.0,0.205781]
[1737991166014,0.89858427,101080.0,101070.0,0.00791]
[1737991166607,0.47543984,101080.0,101070.0,0.197871]
[1737991167002,0.46744649,101080.0,101070.0,0.197871]
[1737991167509,0.50791938,101090.0,101080.0,0.197852]
[1737991167716,0.70575138,101090.0,101080.0,0.197852]
[1737991167914,0.81935924,101090.0,101080.0,0.197852]
[1737991168211,0.31479182,101080.0,101070.0,0.197868]
[1737991168409,0.67559182,101080.0,101070.0,0.197868]
[1737991168612,0.78657454,101080.0,101070.0,0.197868]
[1737991168813,0.78657454,101080.0,101070.0,1.697868]
[1737991169108,0.22792254,101080.0,101070.0,2.058668]
[1737991169313,0.11693982,101080.0,101070.0,2.058668]
[1737991170010,0.47773982,101080.0,101070.0,1.697868]
[1737991170212,0.58100706,101080.0,101070.0,1.697868]
[1737991170610,0.77885906,101080.0,101070.0,1.697868]
[1737991170806,0.58100706,101080.0,101070.0,1.697868]
[1737991171907,0.22020706,101080.0,101070.0,2.058668]
[1737991172409,0.10326724,101080.0,101070.0,2.058668]
[1737991173412,0.55878376,101090.0,101080.0,0.197852]
[1737991173814,0.67091446,101090.0,101080.0,0.197852]
[1737991174916,0.60134862,101090.0,101060.0,0.197888]
[1737991175216,0.197891,101060.0,101050.0,0.299018]
[1737991175411,0.68696116,101060.0,101050.0,1.791108]
[1737991175619,0.79108586,101060.0,101050.0,1.791108]
[1737991175912,0.197911,101050.0,101040.0,0.00148462]
[1737991176102,0.558711,101050.0,101040.0,0.00148462]
[1737991176307,0.6628357,101050.0,101040.0,0.00148462]
[1737991176512,0.6628357,101050.0,101040.0,1.69941462]
[1737991176913,0.6628357,101050.0,101040.0,1.78971462]
[1737991177115,0.558711,101050.0,101040.0,1.78971462]
[1737991177515,0.66627153,101050.0,101040.0,1.78971462]
[1737991178717,0.66627153,101050.0,101040.0,1.59178462]
[1737991178919,0.66627153,101050.0,101040.0,0.00148462]
[1737991179919,0.66476053,101050.0,101020.0,0.197962]
[1737991180111,0.55875,101030.0,101020.0,1.697962]
[1737991180622,0.48641123,101050.0,101020.0,2.058762]
[1737991180924,0.197942,101040.0,101030.0,0.19795]
[1737991181120,0.43693423,101050.0,101020.0,0.3608]
[1737991181121,0.19795,101030.0,101020.0,0.558761]
[1737991181422,0.30587642,101030.0,101020.0,0.197961]
[1737991181813,0.30587642,101030.0,101020.0,0.558761]
[1737991182720,0.197933,101040.0,101020.0,0.3608]
[1737991182917,0.319798,101050.0,101040.0,0.19793]
[1737991182918,0.321315,101050.0,101040.0,0.19793]
[1737991183119,0.22644706,101050.0,101040.0,0.55873]
[1737991183322,0.321309,101050.0,101040.0,0.65073]
[1737991183510,0.321309,101050.0,101040.0,0.28993]
[1737991183710,0.43398994,101050.0,101040.0,0.19793]
[1737991183914,0.59687894,101050.0,101030.0,0.3608]
[1737991184116,0.197946,101040.0,101030.0,0.197947]
[1737991184625,0.30186374,101040.0,101030.0,0.558747]
[1737991185423,0.10391774,101040.0,101030.0,0.558747]
[1737991185622,0.321312,101050.0,101040.0,0.19793]
[1737991185825,0.321312,101050.0,101040.0,0.55873]
[1737991186024,0.22892823,101050.0,101040.0,0.55873]
[1737991186216,0.123398,101050.0,101040.0,0.55873]
[1737991186417,0.123398,101050.0,101040.0,0.65103]
[1737991186626,0.1534298,101050.0,101040.0,0.65103]
[1737991186825,0.14711938,101050.0,101040.0,0.65103]
[1737991187212,0.34503038,101050.0,101040.0,0.65103]
[1737991188921,0.14711938,101050.0,101040.0,0.65103]
[1737991189628,0.17680765,101050.0,101040.0,0.87716203]
[1737991189825,0.18281355,101060.0,101040.0,0.67923203]
[1737991190019,0.17785091,101060.0,101050.0,0.654211]
[1737991190620,0.29796129,101060.0,101050.0,0.654211]
[1737991192821,0.33974873,101070.0,101060.0,0.197891]
[1737991193130,0.33974873,101070.0,101060.0,0.78482303]
[1737991193521,0.33974873,101070.0,101060.0,2.28482303]
[1737991194330,0.17736457,101070.0,101060.0,2.28482303]
[1737991194831,0.37523557,101070.0,101060.0,0.558691]
[1737991195123,0.48412967,101070.0,101060.0,0.558691]
[1737991195328,0.197891,101060.0,101050.0,0.3608]
[1737991195524,0.69652667,101070.0,101050.0,0.197909]
[1737991195830,0.197911,101050.0,101040.0,1.13928876]
[1737991196425,0.197911,101050.0,101040.0,0.65116876]
[1737991197724,0.1979,101060.0,101050.0,0.197902]
[1737991198036,0.1979,101060.0,101050.0,0.558702]
[1737991199129,0.20279901,101060.0,101050.0,0.197902]
[1737991199925,0.20279901,101060.0,101050.0,0.558702]
[1737991200323,0.197911,101050.0,101040.0,0.46115776]
[1737991200528,0.197911,101050.0,101040.0,0.00014776]
[1737991200529,0.558711,101050.0,101040.0,0.00014776]
[1737991200729,0.30153111,101050.0,101040.0,0.00014776]
[1737991200925,0.10362011,101050.0,101040.0,0.68717924]
[1737991201222,0.10547334,101070.0,101060.0,0.197891]
[1737991201423,0.10547334,101070.0,101060.0,0.919491]
[1737991201624,0.10547334,101070.0,101060.0,1.04779248]
[1737991201827,0.11820258,101080.0,101060.0,0.84990148]
[1737991202028,0.43209039,101100.0,101090.0,0.197832]
[1737991202332,0.23427539,101100.0,101090.0,1.04773348]
[1737991202631,0.37193634,101110.0,101100.0,0.197813]
[1737991202827,0.37045172,101110.0,101100.0,0.68691448]
[1737991203127,0.197813,101100.0,101090.0,0.55876876]
[1737991203332,0.197813,101100.0,101090.0,0.00014776]
[1737991203636,0.66587865,101100.0,101090.0,0.00014776]
[1737991204132,0.197813,101100.0,101090.0,0.68708124]
[1737991204333,0.73125172,101110.0,101090.0,0.48924924]
[1737991204630,0.197813,101100.0,101090.0,1.86094776]
[1737991204836,0.197813,101100.0,101090.0,0.36094776]
[1737991205031,0.46759721,101100.0,101070.0,0.38553]
[1737991205239,0.197839,101090.0,101080.0,0.558651]
[1737991205431,0.197824,101100.0,101090.0,0.197832]
[1737991205629,0.197824,101100.0,101090.0,0.558632]
[1737991205833,0.57320353,101110.0,101100.0,0.197813]
[1737991206137,0.26355981,101110.0,101100.0,0.78445234]
[1737991206528,0.26355981,101110.0,101100.0,0.22583934]
[1737991206737,0.19793,101040.0,100990.0,0.54935864]
[1737991207034,0.01,100980.0,100970.0,0.96967596]
[1737991207233,0.208067,100970.0,100960.0,0.23880207]
[1737991207533,0.53436108,100980.0,100960.0,0.23880207]
[1737991207735,0.01,100970.0,100960.0,0.79768407]
[1737991207935,0.01,100970.0,100960.0,0.80560407]
[1737991208133,0.0101485,100980.0,100960.0,0.45272407]
[1737991208438,0.3609485,100980.0,100960.0,0.25464207]